[Event "POL-chT 1 Liga 2019"]
[Site "Dzwirzyno"]
[Date "2019.09.12"]
[Round "6.26"]
[White "Lewtak, Damian"]
[Black "Zylka, Stanislaw"]
[Result "1/2-1/2"]
[ECO "D94"]
[WhiteElo "2377"]
[BlackElo "2338"]
[Annotator "NA"]
[PlyCount "30"]
[EventDate "2019.09.07"]
[EventType "team-tourn"]
[EventCountry "POL"]
[SourceTitle "playchess.com"]
[Source "ChessBase"]
[SourceQuality "1"]
[TimeControl "40/5400+30:1800+30"]

1. d4 {[%emt 0:00:00]} Nf6 {[%emt 0:00:38]} 2. c4 {[%emt 0:00:00]} g6 {[%emt 0:00:11]} 3. Nc3 {[%emt 0:01:50]} d5 {[%emt 0:00:07]} 4. Nf3 {[%emt 0:01:36]} Bg7 {[%emt 0:00:09]} 5. e3 {[%emt 0:00:27]} O-O {[%emt 0:00:09]} 6. Be2 {[%emt 0:00:15]} dxc4 {[%emt 0:00:08]} 7. O-O {[%emt 0:00:14]} c5 {[%emt 0:00:05]} 8. dxc5 {[%emt 0:00:04]} Qa5 {[%emt 0:00:17]} 9. Qd4 {[%emt 0:00:05]} Be6 {[%emt 0:00:50]} 10. Ng5 {[%emt 0:01:45]} Nc6 {[%emt 0:01:00]} 11. Qh4 {[%emt 0:00:25]} Bd7 {[%emt 0:00:40]} 12. Qxc4 {[%emt 0:03:32]} Ne5 {[%emt 0:01:40]} 13. Qd4 {[%emt 0:04:19]} Nc6 {[%emt 0:00:41]} 14. Qc4 {[%emt 0:00:08]} Ne5 {[%emt 0:00:18]} 15. Qd4 {[%emt 0:00:05]} Nc6 {[%emt 0:00:57]} 1/2-1/2

[Event "POL-chT 1 Liga 2019"]
[Site "Dzwirzyno"]
[Date "2019.09.12"]
[Round "6.27"]
[White "Koziol, Kamil"]
[Black "Plichta, Kamil"]
[Result "1-0"]
[ECO "B03"]
[WhiteElo "2292"]
[BlackElo "2349"]
[Annotator "NA"]
[PlyCount "63"]
[EventDate "2019.09.07"]
[EventType "team-tourn"]
[EventCountry "POL"]
[SourceTitle "playchess.com"]
[Source "ChessBase"]
[SourceQuality "1"]
[TimeControl "40/5400+30:1800+30"]

1. e4 {[%emt 0:00:04]} Nf6 {[%emt 0:00:00]} 2. e5 {[%emt 0:00:25]} Nd5 {[%emt 0:00:00]} 3. d4 {[%emt 0:00:14]} Nb6 {[%emt 0:00:00]} 4. Nf3 {[%emt 0:09:22]} d5 {[%emt 0:00:00]} 5. Bd3 {[%emt 0:01:10]} Bg4 {[%emt 0:00:08]} 6. h3 {[%emt 0:00:31]} Bxf3 {[%emt 0:00:03]} 7. Qxf3 {[%emt 0:01:40]} e6 {[%emt 0:00:06]} 8. Qg3 {[%emt 0:02:09]} c5 {[%emt 0:02:11]} 9. dxc5 {[%emt 0:14:45]} N6d7 {[%emt 0:00:26]} 10. Nd2 {[%emt 0:02:01]} Nc6 {[%emt 0:01:34]} 11. Nf3 {[%emt 0:06:18]} Nxc5 {[%emt 0:04:12]} 12. O-O {[%emt 0:02:39]} Nxd3 {[%emt 0:00:07]} 13. cxd3 {[%emt 0:00:05]} h6 {[%emt 0:05:32]} 14. h4 {[%emt 0:05:37]} g6 {[%emt 0:00:45]} 15. h5 {[%emt 0:03:48]} Rg8 {[%emt 0:01:10]} 16. Be3 {[%emt 0:14:39]} Qa5 {[%emt 0:07:10]} 17. Rfc1 {[%emt 0:07:01]} Be7 {[%emt 0:04:25]} 18. Bxh6 {[%emt 0:03:36]} Kd7 {[%emt 0:01:24]} 19. Qf4 {[%emt 0:07:46]} gxh5 {[%emt 0:04:02]} 20. Qxf7 {[%emt 0:01:20]} d4 {[%emt 0:00:22]} 21. b4 {[%emt 0:07:35]} Nxb4 {[%emt 0:08:16]} 22. Ng5 {[%emt 0:01:22]} Qxe5 {[%emt 0:03:09]} 23. Nxe6 {[%emt 0:02:23]} Na6 {[%emt 0:07:01]} 24. Rc4 {[%emt 0:01:34]} Rg4 {[%emt 0:00:58]} 25. Bf4 {[%emt 0:01:51]} Rxf4 {[%emt 0:00:58]} 26. Nxf4 {[%emt 0:00:35]} b5 {[%emt 0:01:58]} 27. Ng6 {[%emt 0:00:36]} Qd6 {[%emt 0:00:55]} 28. Re1 {[%emt 0:00:32]} bxc4 {[%emt 0:00:23]} 29. Rxe7+ {[%emt 0:00:08]} Kc6 {[%emt 0:00:08]} 30. Ne5+ {[%emt 0:01:29]} Kb5 {[%emt 0:00:47]} 31. Rb7+ {[%emt 0:00:17]} Kc5 {[%emt 0:00:12]} 32. Qxc4# {[%emt 0:00:08] Kd5} 1-0

[Event "POL-chT 1 Liga 2019"]
[Site "Dzwirzyno"]
[Date "2019.09.12"]
[Round "6.28"]
[White "Reza, Wojciech"]
[Black "Nowak, Mikolaj"]
[Result "0-1"]
[ECO "A04"]
[WhiteElo "2293"]
[BlackElo "2262"]
[Annotator "NA"]
[PlyCount "66"]
[EventDate "2019.09.07"]
[EventType "team-tourn"]
[EventCountry "POL"]
[SourceTitle "playchess.com"]
[Source "ChessBase"]
[SourceQuality "1"]
[TimeControl "40/5400+30:1800+30"]

1. Nf3 {[%emt 0:00:00]} f5 {[%emt 0:00:05]} 2. d3 {[%emt 0:00:55]} Nc6 {[%emt 0:00:06]} 3. d4 {[%emt 0:04:51]} e6 {[%emt 0:00:22]} 4. g3 {[%emt 0:02:04]} Nf6 {[%emt 0:00:21]} 5. Bg2 {[%emt 0:10:07]} g6 {[%emt 0:00:15]} 6. O-O {[%emt 0:03:35]} Bg7 {[%emt 0:00:04]} 7. c4 {[%emt 0:01:03]} d6 {[%emt 0:00:33]} 8. d5 {[%emt 0:04:35]} Ne5 {[%emt 0:07:39]} 9. Nd4 {[%emt 0:03:10]} O-O {[%emt 0:05:06]} 10. Qc2 {[%emt 0:09:54]} Qe7 {[%emt 0:07:24]} 11. Nd2 {[%emt 0:07:19]} Re8 {[%emt 0:11:30]} 12. e3 {[%emt 0:16:05]} a6 {[%emt 0:10:32]} 13. Nxe6 {[%emt 0:05:05]} Bxe6 {[%emt 0:00:12]} 14. dxe6 {[%emt 0:00:03]} c6 {[%emt 0:06:08]} 15. b3 {[%emt 0:07:04]} Qxe6 {[%emt 0:00:24]} 16. Bb2 {[%emt 0:00:11]} d5 {[%emt 0:01:59]} 17. Rad1 {[%emt 0:03:14]} Rad8 {[%emt 0:03:25]} 18. cxd5 {[%emt 0:03:18]} Nxd5 {[%emt 0:00:59]} 19. Bxe5 {[%emt 0:05:34]} Qxe5 {[%emt 0:00:13]} 20. Nc4 {[%emt 0:00:07]} Qc7 {[%emt 0:01:49]} 21. a4 {[%emt 0:02:13]} Nc3 {[%emt 0:06:05]} 22. Rxd8 {[%emt 0:00:26]} Rxd8 {[%emt 0:00:19]} 23. Re1 {[%emt 0:06:54]} b5 {[%emt 0:01:07]} 24. Na3 {[%emt 0:02:27]} Qa5 {[%emt 0:03:53]} 25. Nb1 {[%emt 0:01:29]} bxa4 {[%emt 0:00:14]} 26. bxa4 {[%emt 0:00:28]} Qxa4 {[%emt 0:01:47]} 27. Qxa4 {[%emt 0:00:09]} Nxa4 {[%emt 0:00:03]} 28. Bxc6 {[%emt 0:00:14]} Nb2 {[%emt 0:00:28]} 29. Na3 {[%emt 0:01:08]} a5 {[%emt 0:00:39]} 30. Bb5 {[%emt 0:00:40]} Rb8 {[%emt 0:01:36]} 31. e4 {[%emt 0:00:32]} Bf8 {[%emt 0:00:46]} 32. Nc4 {[%emt 0:00:33]} Rxb5 {[%emt 0:00:10]} 33. Rb1 {[%emt 0:00:08]} a4 {[%emt 0:01:47]} 0-1

[Event "POL-chT 1 Liga 2019"]
[Site "Dzwirzyno"]
[Date "2019.09.12"]
[Round "6.29"]
[White "Tomaszewski, Kacper"]
[Black "Renkowski, Piotr"]
[Result "1/2-1/2"]
[ECO "D35"]
[WhiteElo "2363"]
[BlackElo "2179"]
[Annotator "NA"]
[PlyCount "81"]
[EventDate "2019.09.07"]
[EventType "team-tourn"]
[EventCountry "POL"]
[SourceTitle "playchess.com"]
[Source "ChessBase"]
[SourceQuality "1"]
[TimeControl "40/5400+30:1800+30"]

1. d4 {[%emt 0:00:00]} d5 {[%emt 0:00:00]} 2. c4 {[%emt 0:00:00]} e6 {[%emt 0:00:00]} 3. Nc3 {[%emt 0:00:02]} Nf6 {[%emt 0:00:01]} 4. cxd5 {[%emt 0:00:14]} exd5 {[%emt 0:00:15]} 5. Bg5 {[%emt 0:00:08]} Be7 {[%emt 0:05:06]} 6. e3 {[%emt 0:00:07]} c6 {[%emt 0:00:33]} 7. Bd3 {[%emt 0:00:08]} Ne4 {[%emt 0:03:57]} 8. Bf4 {[%emt 0:04:09]} Bf5 {[%emt 0:12:53]} 9. Qc2 {[%emt 0:07:40]} Qa5 {[%emt 0:08:42]} 10. f3 {[%emt 0:07:29]} Nxc3 {[%emt 0:00:08]} 11. Bxf5 {[%emt 0:02:59]} Ne4+ {[%emt 0:08:53]} 12. Kf1 {[%emt 0:01:24]} Nf6 {[%emt 0:00:04]} 13. g4 {[%emt 0:01:27]} Na6 {[%emt 0:07:36]} 14. a3 {[%emt 0:09:47]} Nc7 {[%emt 0:10:38]} 15. Ne2 {[%emt 0:03:22]} g6 {[%emt 0:04:02]} 16. Bd3 {[%emt 0:00:20]} Ne6 {[%emt 0:00:19]} 17. Bg3 {[%emt 0:02:31]} h5 {[%emt 0:03:16]} 18. gxh5 {[%emt 0:02:10]} Nxh5 {[%emt 0:01:54]} 19. Be5 {[%emt 0:01:11]} Bf6 {[%emt 0:03:38]} 20. Bxf6 {[%emt 0:05:36]} Nxf6 {[%emt 0:00:01]} 21. Ng3 {[%emt 0:01:51]} Qc7 {[%emt 0:02:13]} 22. Rg1 {[%emt 0:02:31]} O-O-O {[%emt 0:05:06]} 23. Rg2 {[%emt 0:05:36]} Kb8 {[%emt 0:00:19]} 24. Be2 {[%emt 0:03:41]} Nh5 {[%emt 0:04:31]} 25. Rd1 {[%emt 0:04:42]} Nxg3+ {[%emt 0:02:22]} 26. hxg3 {[%emt 0:00:14]} Ng5 {[%emt 0:00:39]} 27. Ke1 {[%emt 0:11:09]} Rh3 {[%emt 0:01:19]} 28. Kf2 {[%emt 0:01:35]} Rdh8 {[%emt 0:00:23]} 29. Rdg1 {[%emt 0:00:56]} Rh1 {[%emt 0:01:48]} 30. Kf1 {[%emt 0:02:42]} Rxg1+ {[%emt 0:01:39]} 31. Kxg1 {[%emt 0:00:52]} Rh3 {[%emt 0:00:48]} 32. f4 {[%emt 0:00:06]} Ne4 {[%emt 0:00:39]} 33. Bg4 {[%emt 0:00:09]} Rxg3 {[%emt 0:05:40]} 34. Rxg3 {[%emt 0:00:05]} Nxg3 {[%emt 0:00:01]} 35. Qh2 {[%emt 0:00:08]} Nf5 {[%emt 0:00:06]} 36. Qh8+ {[%emt 0:03:23]} Qc8 {[%emt 0:00:01]} 37. Qe5+ {[%emt 0:00:12]} Ka8 {[%emt 0:01:53]} 38. Bxf5 {[%emt 0:00:14]} gxf5 {[%emt 0:00:13]} 39. Qf6 {[%emt 0:00:13]} Qe8 {[%emt 0:03:39]} 40. Kf2 {[%emt 0:00:00]} a5 {[%emt 0:00:00]} 41. Qxf5 {[%emt 0:00:54]} 1/2-1/2

[Event "POL-chT 1 Liga 2019"]
[Site "Dzwirzyno"]
[Date "2019.09.12"]
[Round "6.30"]
[White "Jablonska, Sabina"]
[Black "Cieslak, Wiktoria"]
[Result "0-1"]
[ECO "E15"]
[WhiteElo "1928"]
[BlackElo "2063"]
[Annotator "NA"]
[PlyCount "143"]
[EventDate "2019.09.07"]
[EventType "team-tourn"]
[EventCountry "POL"]
[SourceTitle "playchess.com"]
[Source "ChessBase"]
[SourceQuality "1"]
[TimeControl "40/5400+30:1800+30"]

1. d4 {[%emt 0:00:00]} Nf6 {[%emt 0:00:00]} 2. c4 {[%emt 0:00:12]} e6 {[%emt 0:00:00]} 3. Nf3 {[%emt 0:00:11]} b6 {[%emt 0:00:00]} 4. g3 {[%emt 0:00:06]} Bb4+ {[%emt 0:00:17]} 5. Bd2 {[%emt 0:00:59]} Qe7 {[%emt 0:00:15]} 6. Bg2 {[%emt 0:03:40]} Bb7 {[%emt 0:00:32]} 7. O-O {[%emt 0:00:56]} Bxd2 {[%emt 0:00:34]} 8. Qxd2 {[%emt 0:02:04]} d6 {[%emt 0:07:55]} 9. Nc3 {[%emt 0:04:44]} O-O {[%emt 0:03:28]} 10. d5 {[%emt 0:06:46]} e5 {[%emt 0:03:20]} 11. e4 {[%emt 0:03:56]} Nbd7 {[%emt 0:01:15]} 12. Nh4 {[%emt 0:03:12]} g6 {[%emt 0:00:37]} 13. f4 {[%emt 0:11:40]} exf4 {[%emt 0:13:59]} 14. Qxf4 {[%emt 0:06:03]} Nh5 {[%emt 0:01:42]} 15. Qd2 {[%emt 0:07:49]} Ne5 {[%emt 0:00:51]} 16. b3 {[%emt 0:01:36]} Rae8 {[%emt 0:01:34]} 17. Nb5 {[%emt 0:09:59]} a6 {[%emt 0:01:32]} 18. Nd4 {[%emt 0:00:07]} Bc8 {[%emt 0:00:32]} 19. Ndf3 {[%emt 0:07:21]} Nxf3+ {[%emt 0:02:16]} 20. Bxf3 {[%emt 0:00:08]} Nf6 {[%emt 0:01:12]} 21. Rae1 {[%emt 0:04:00]} Nd7 {[%emt 0:05:56]} 22. Bg2 {[%emt 0:08:01]} Qe5 {[%emt 0:07:54]} 23. Nf3 {[%emt 0:04:35]} Qg7 {[%emt 0:00:17]} 24. Nd4 {[%emt 0:05:59]} Ne5 {[%emt 0:00:56]} 25. Re2 {[%emt 0:01:09]} Re7 {[%emt 0:01:28]} 26. Ref2 {[%emt 0:01:20]} Rfe8 {[%emt 0:00:42]} 27. h3 {[%emt 0:00:46]} a5 28. a4 Bb7 {[%emt 0:06:48]} 29. g4 {[%emt 0:01:18]} Nd7 {[%emt 0:01:41]} 30. Re2 {[%emt 0:02:29]} Nc5 {[%emt 0:01:50]} 31. Rfe1 {[%emt 0:00:22]} Qe5 {[%emt 0:02:26]} 32. Re3 {[%emt 0:01:35]} Qg5 {[%emt 0:05:26]} 33. Qf2 {[%emt 0:01:46]} Qe5 {[%emt 0:07:26]} 34. Ne2 {[%emt 0:00:27]} Bc8 {[%emt 0:04:36]} 35. Ng3 {[%emt 0:00:15]} Qd4 {[%emt 0:02:55]} 36. Rf1 {[%emt 0:00:24]} Bd7 {[%emt 0:01:14]} 37. Ne2 {[%emt 0:00:56]} Qg7 {[%emt 0:03:18]} 38. Ng3 {[%emt 0:00:06]} c6 {[%emt 0:01:26]} 39. g5 {[%emt 0:00:54]} cxd5 {[%emt 0:00:47]} 40. cxd5 {[%emt 0:00:00]} b5 {[%emt 0:00:00]} 41. axb5 {[%emt 0:05:54]} Bxb5 {[%emt 0:01:51]} 42. Rd1 {[%emt 0:00:26]} Qe5 {[%emt 0:01:08]} 43. h4 {[%emt 0:02:04]} Bd7 {[%emt 0:00:58]} 44. Bf3 {[%emt 0:06:30]} Rb8 {[%emt 0:01:38]} 45. Rb1 {[%emt 0:05:58]} a4 {[%emt 0:03:21]} 46. Bd1 {[%emt 0:03:41]} Be8 {[%emt 0:02:06]} 47. b4 {[%emt 0:01:55]} Na6 {[%emt 0:02:18]} 48. Ra3 {[%emt 0:00:33]} Nxb4 {[%emt 0:02:45]} 49. Qd2 {[%emt 0:05:45]} Reb7 {[%emt 0:01:07]} 50. Rba1 {[%emt 0:00:37]} Na6 {[%emt 0:00:28]} 51. h5 {[%emt 0:02:52]} Nc5 {[%emt 0:01:03]} 52. Qe3 {[%emt 0:00:15]} Rb4 {[%emt 0:01:43]} 53. Bc2 {[%emt 0:00:30]} Rb2 {[%emt 0:00:49]} 54. Rc1 {[%emt 0:00:21]} Nb3 {[%emt 0:03:04]} 55. Bxb3 {[%emt 0:00:14]} R8xb3 {[%emt 0:00:35]} 56. Rc3 {[%emt 0:00:43]} Rxa3 {[%emt 0:00:37]} 57. Rxa3 {[%emt 0:00:06]} Rb1+ {[%emt 0:00:08]} 58. Kg2 {[%emt 0:01:11]} Qb2+ {[%emt 0:00:11]} 59. Kf3 {[%emt 0:00:24]} Qxa3 {[%emt 0:04:39]} 60. Qxa3 {[%emt 0:00:10]} Rb3+ {[%emt 0:00:02]} 61. Qxb3 {[%emt 0:00:14]} axb3 {[%emt 0:00:05]} 62. Ne2 {[%emt 0:00:09]} b2 {[%emt 0:00:05]} 63. Nc3 {[%emt 0:00:04]} Ba4 {[%emt 0:00:07]} 64. h6 {[%emt 0:01:13]} Bc2 {[%emt 0:00:30]} 65. Kf4 {[%emt 0:00:30]} f5 {[%emt 0:00:30]} 66. gxf6 {[%emt 0:00:30]} Kf7 {[%emt 0:00:30]} 67. e5 {[%emt 0:00:30]} dxe5+ {[%emt 0:00:30]} 68. Kxe5 {[%emt 0:00:30]} b1=Q {[%emt 0:00:30]} 69. Nxb1 {[%emt 0:00:30]} Bxb1 {[%emt 0:00:30]} 70. Kf4 {[%emt 0:00:03]} Bc2 71. Ke5 Bb1 {[%emt 0:00:00]} 72. Kd4 0-1

[Event "POL-chT 1 Liga 2019"]
[Site "Dzwirzyno"]
[Date "2019.09.13"]
[Round "7.1"]
[White "Cukrowski, Filip"]
[Black "Nayhebaver, Martin"]
[Result "1/2-1/2"]
[ECO "B90"]
[WhiteElo "2410"]
[BlackElo "2491"]
[Annotator "ChessBase"]
[PlyCount "100"]
[EventDate "2019.09.07"]
[EventType "team-tourn"]
[EventCountry "POL"]
[SourceTitle "playchess.com"]
[Source "ChessBase"]
[SourceQuality "1"]
[TimeControl "40/5400+30:1800+30"]

1. e4 {[%emt 0:02:02]} c5 {[%emt 0:00:00]} 2. Nf3 {[%emt 0:00:31]} d6 {[%emt 0:00:29]} 3. d4 {[%emt 0:00:16]} cxd4 {[%emt 0:00:06]} 4. Nxd4 {[%emt 0:00:07]} Nf6 {[%emt 0:00:06]} 5. Nc3 {[%emt 0:00:04]} a6 {[%emt 0:00:26]} 6. Be3 {[%emt 0:00:07]} e5 {[%emt 0:00:38]} 7. Nf3 {[%emt 0:00:09]} Qc7 {[%emt 0:01:07]} 8. a4 {[%emt 0:00:22]} Be6 {[%emt 0:00:26]} 9. Be2 {[%emt 0:10:26]} h6 {[%emt 0:02:35]} 10. O-O {[%emt 0:01:12]} Qc6 {[%emt 0:05:07]} 11. Ne1 {[%emt 0:14:01]} Nbd7 {[%emt 0:07:09]} 12. Nd3 {[%emt 0:00:29]} d5 {[%emt 0:07:56]} 13. exd5 {[%emt 0:00:10]} Nxd5 {[%emt 0:00:22]} 14. Bf3 {[%emt 0:00:47]} Nxc3 {[%emt 0:02:27]} 15. Bxc6 {[%emt 0:01:43]} Nxd1 {[%emt 0:01:09]} 16. Bxd7+ {[%emt 0:00:06]} Bxd7 {[%emt 0:00:11]} 17. Rfxd1 {[%emt 0:00:13]} f6 {[%emt 0:03:32]} 18. b4 {[%emt 0:14:28]} Bf5 {[%emt 0:06:02]} 19. f4 {[%emt 0:14:15]} exf4 {[%emt 0:02:41]} 20. Nxf4 {[%emt 0:13:38]} Rc8 {[%emt 0:14:09]} 21. Rd5 {[%emt 0:03:59]} Bxc2 {[%emt 0:02:31]} 22. Re1 {[%emt 0:00:32]} Bxa4 {[%emt 0:23:22]} 23. Ng6 {[%emt 0:02:27]} Rg8 {[%emt 0:00:16]} 24. Bc5+ {[%emt 0:04:25]} Kf7 {[%emt 0:01:14]} 25. Nxf8 {[%emt 0:00:08]} Rgxf8 {[%emt 0:00:24]} 26. Bxf8 {[%emt 0:00:59]} Kxf8 {[%emt 0:00:05]} 27. Rc5 {[%emt 0:03:04]} Bc6 {[%emt 0:00:26]} 28. Re2 {[%emt 0:00:43]} Rd8 {[%emt 0:00:18]} 29. Kf2 {[%emt 0:00:25]} Rd4 {[%emt 0:00:33]} 30. Rb2 {[%emt 0:00:10]} Kf7 {[%emt 0:00:42]} 31. Ke3 {[%emt 0:00:41]} Rd1 {[%emt 0:01:28]} 32. Rcc2 {[%emt 0:01:44]} f5 {[%emt 0:02:44]} 33. Rd2 {[%emt 0:01:30]} Rh1 {[%emt 0:00:11]} 34. g3 {[%emt 0:00:19]} Ke6 {[%emt 0:00:46]} 35. Kd4 {[%emt 0:02:38]} g5 {[%emt 0:01:46]} 36. Re2+ {[%emt 0:00:07]} Kf6 {[%emt 0:00:19]} 37. Rf2 {[%emt 0:00:07]} Re1 {[%emt 0:02:27]} 38. Rbe2 {[%emt 0:02:35]} Rb1 {[%emt 0:00:22]} 39. Rb2 {[%emt 0:01:28]} Rg1 {[%emt 0:01:30]} 40. Rbc2 {[%emt 0:00:00]} h5 {[%emt 0:00:00]} 41. Ke3 {[%emt 0:08:13]} Be4 {[%emt 0:04:16]} 42. Rb2 {[%emt 0:00:36]} Ke5 {[%emt 0:09:47]} 43. b5 {[%emt 0:02:13]} h4 {[%emt 0:00:55]} 44. bxa6 {[%emt 0:01:09]} bxa6 {[%emt 0:08:13]} 45. gxh4 {[%emt 0:06:53]} f4+ {[%emt 0:00:15]} 46. Ke2 {[%emt 0:00:05]} g4 {[%emt 0:05:59]} 47. Ra2 {[%emt 0:00:17]} Bc6 {[%emt 0:00:16]} 48. Kd2 {[%emt 0:00:52]} Bb5 {[%emt 0:07:32]} 49. Ra3 {[%emt 0:00:22]} Rh1 {[%emt 0:06:46]} 50. h5 {[%emt 0:02:27]} g3 {[%emt 0:01:53]} 1/2-1/2

[Event "POL-chT 1 Liga 2019"]
[Site "Dzwirzyno"]
[Date "2019.09.13"]
[Round "7.2"]
[White "Roubalik, Jakub"]
[Black "Lewtak, Damian"]
[Result "0-1"]
[ECO "D36"]
[WhiteElo "2405"]
[BlackElo "2377"]
[Annotator "NA"]
[PlyCount "92"]
[EventDate "2019.09.07"]
[EventType "team-tourn"]
[EventCountry "POL"]
[SourceTitle "playchess.com"]
[Source "ChessBase"]
[SourceQuality "1"]
[TimeControl "40/5400+30:1800+30"]

1. d4 {[%emt 0:00:00]} d5 {[%emt 0:00:02]} 2. c4 {[%emt 0:00:00]} e6 {[%emt 0:00:04]} 3. Nc3 {[%emt 0:00:11]} Nf6 {[%emt 0:00:25]} 4. cxd5 {[%emt 0:00:07]} exd5 {[%emt 0:00:04]} 5. Bg5 {[%emt 0:00:06]} c6 {[%emt 0:04:04]} 6. Qc2 {[%emt 0:00:10]} Be7 {[%emt 0:00:38]} 7. e3 {[%emt 0:00:11]} Nbd7 {[%emt 0:01:19]} 8. Bd3 {[%emt 0:00:10]} Nf8 {[%emt 0:01:06]} 9. Nge2 {[%emt 0:01:23]} Nh5 {[%emt 0:01:04]} 10. Bxe7 {[%emt 0:00:25]} Qxe7 {[%emt 0:00:08]} 11. O-O-O {[%emt 0:01:37]} Bg4 {[%emt 0:06:13]} 12. Kb1 {[%emt 0:00:34]} Bxe2 {[%emt 0:00:20]} 13. Bxe2 {[%emt 0:06:20]} Nf6 {[%emt 0:00:08]} 14. g4 {[%emt 0:23:10]} Ne6 {[%emt 0:00:38]} 15. h4 {[%emt 0:04:36]} Nc7 {[%emt 0:01:11]} 16. g5 {[%emt 0:11:06]} Nd7 {[%emt 0:02:59]} 17. Bd3 {[%emt 0:03:37]} O-O-O {[%emt 0:01:43]} 18. Qe2 {[%emt 0:00:35]} Kb8 {[%emt 0:00:53]} 19. Qg4 {[%emt 0:01:00]} Nb6 {[%emt 0:02:40]} 20. Rh3 {[%emt 0:07:44]} Qb4 {[%emt 0:03:59]} 21. Rf3 {[%emt 0:02:58]} Rdf8 {[%emt 0:02:37]} 22. Qg3 {[%emt 0:02:45]} Qe7 {[%emt 0:01:44]} 23. Rc1 {[%emt 0:04:37]} a6 {[%emt 0:00:58]} 24. Qf4 {[%emt 0:09:59]} Ka7 {[%emt 0:00:29]} 25. Qg3 {[%emt 0:02:41]} Ne6 {[%emt 0:00:43]} 26. Qe5 {[%emt 0:03:14]} h6 {[%emt 0:02:35]} 27. Rg3 {[%emt 0:06:05]} hxg5 {[%emt 0:04:58]} 28. hxg5 {[%emt 0:00:04]} g6 {[%emt 0:00:04]} 29. Rgg1 {[%emt 0:02:07]} Rh3 {[%emt 0:03:40]} 30. Qf6 {[%emt 0:03:15]} Qxf6 {[%emt 0:04:17]} 31. gxf6 {[%emt 0:00:01]} Nd7 {[%emt 0:00:18]} 32. Rh1 {[%emt 0:02:23]} Rfh8 {[%emt 0:01:19]} 33. Rxh3 {[%emt 0:00:05]} Rxh3 {[%emt 0:00:04]} 34. Kc2 {[%emt 0:01:37]} Rh2 {[%emt 0:01:51]} 35. Rf1 {[%emt 0:00:02]} Nxf6 {[%emt 0:00:07]} 36. Kd2 {[%emt 0:00:12]} Kb8 {[%emt 0:01:32]} 37. Be2 {[%emt 0:02:03]} Kc7 {[%emt 0:01:53]} 38. Ke1 {[%emt 0:00:41]} Ng5 {[%emt 0:01:33]} 39. Rg1 {[%emt 0:00:48]} Nh3 {[%emt 0:02:08]} 40. Rg3 {[%emt 0:00:00]} Nxf2 {[%emt 0:00:00]} 41. Rf3 {[%emt 0:01:11]} N2e4 {[%emt 0:01:05]} 42. Nxe4 {[%emt 0:00:29]} Nxe4 {[%emt 0:00:05]} 43. Rxf7+ {[%emt 0:00:05]} Kb6 {[%emt 0:00:41]} 44. b4 {[%emt 0:00:46]} Rh1+ {[%emt 0:00:29]} 45. Rf1 {[%emt 0:01:30]} Rxf1+ {[%emt 0:00:07]} 46. Bxf1 {[%emt 0:00:02]} g5 {[%emt 0:01:05]} 0-1

[Event "POL-chT 1 Liga 2019"]
[Site "Dzwirzyno"]
[Date "2019.09.13"]
[Round "7.3"]
[White "Plichta, Kamil"]
[Black "Paszewski, Mateusz"]
[Result "1-0"]
[ECO "B10"]
[WhiteElo "2349"]
[BlackElo "2297"]
[Annotator "NA"]
[PlyCount "97"]
[EventDate "2019.09.07"]
[EventType "team-tourn"]
[EventCountry "POL"]
[SourceTitle "playchess.com"]
[Source "ChessBase"]
[SourceQuality "1"]
[TimeControl "40/5400+30:1800+30"]

1. e4 {[%emt 0:00:00]} c6 {[%emt 0:00:00]} 2. d3 {[%emt 0:00:00]} d5 {[%emt 0:00:00]} 3. Nd2 {[%emt 0:00:00]} e5 {[%emt 0:00:00]} 4. Ngf3 {[%emt 0:00:00]} Bd6 {[%emt 0:00:03]} 5. d4 {[%emt 0:00:00]} exd4 {[%emt 0:00:57]} 6. exd5 {[%emt 0:00:00]} cxd5 {[%emt 0:00:18]} 7. Nxd4 {[%emt 0:00:00]} Nc6 {[%emt 0:00:14]} 8. Bb5 {[%emt 0:00:05]} Nge7 {[%emt 0:10:17]} 9. O-O {[%emt 0:00:28]} O-O {[%emt 0:01:10]} 10. N2f3 {[%emt 0:00:08]} Bg4 {[%emt 0:01:24]} 11. Be2 {[%emt 0:00:06]} h6 {[%emt 0:07:14]} 12. h3 {[%emt 0:00:18]} Bh5 {[%emt 0:03:14]} 13. Be3 {[%emt 0:00:07]} Re8 {[%emt 0:01:27]} 14. Re1 {[%emt 0:00:18]} Rc8 {[%emt 0:05:06]} 15. Qd2 {[%emt 0:00:43]} Bb8 {[%emt 0:02:44]} 16. Bf4 {[%emt 0:01:20]} Bxf4 {[%emt 0:16:36]} 17. Qxf4 {[%emt 0:00:08]} Ng6 {[%emt 0:00:05]} 18. Qd2 {[%emt 0:02:11]} Nxd4 {[%emt 0:01:58]} 19. Nxd4 {[%emt 0:00:30]} Bxe2 {[%emt 0:00:04]} 20. Rxe2 {[%emt 0:03:05]} Rxe2 {[%emt 0:01:33]} 21. Qxe2 {[%emt 0:02:11]} Qf6 {[%emt 0:05:52]} 22. c3 {[%emt 0:08:52]} a6 {[%emt 0:04:45]} 23. Re1 {[%emt 0:00:47]} Rc7 {[%emt 0:04:34]} 24. Qf3 {[%emt 0:04:56]} Qd8 {[%emt 0:14:47]} 25. g3 {[%emt 0:00:49]} Re7 {[%emt 0:01:01]} 26. Rxe7 {[%emt 0:01:44]} Nxe7 {[%emt 0:00:15]} 27. h4 {[%emt 0:02:45]} Qd6 {[%emt 0:05:49]} 28. Qe3 {[%emt 0:02:06]} h5 {[%emt 0:02:24]} 29. a4 {[%emt 0:00:30]} g6 {[%emt 0:04:47]} 30. a5 {[%emt 0:00:11]} Nc6 {[%emt 0:00:20]} 31. Nxc6 {[%emt 0:01:15]} Qxc6 {[%emt 0:00:38]} 32. Qe5 Qb5 33. b4 {[%emt 0:02:54]} Qc6 {[%emt 0:01:49]} 34. Kh2 {[%emt 0:00:37]} Kf8 {[%emt 0:00:40]} 35. Qd4 {[%emt 0:01:04]} Ke7 {[%emt 0:01:23]} 36. Kg2 {[%emt 0:00:41]} Kd7 {[%emt 0:01:15]} 37. Kf3 {[%emt 0:00:41]} Qd6 {[%emt 0:00:57]} 38. Ke3 {[%emt 0:01:36]} Qc6 {[%emt 0:01:15]} 39. Kf4 {[%emt 0:01:53]} Qe6 {[%emt 0:01:02]} 40. Kg5 {[%emt 0:00:00]} Ke8 {[%emt 0:00:00]} 41. Qf6 {[%emt 0:04:55]} Qg4+ {[%emt 0:13:28]} 42. Kh6 {[%emt 0:00:10]} Qe2 {[%emt 0:00:09]} 43. Qf4 {[%emt 0:04:28]} Qb5 {[%emt 0:02:15]} 44. Kg7 {[%emt 0:01:52]} Qd7 {[%emt 0:00:19]} 45. Qe5+ {[%emt 0:00:13]} Kd8 {[%emt 0:00:25]} 46. Kf8 {[%emt 0:00:30]} f5 {[%emt 0:01:42]} 47. Qb8+ {[%emt 0:00:20]} Qc8 {[%emt 0:00:04]} 48. Qxc8+ {[%emt 0:00:33]} Kxc8 {[%emt 0:00:03]} 49. Ke7 {[%emt 0:00:08]} 1-0